bitfinex/quotes_BTCUSD_20241202
["timestamp","ask_amount","ask_price","bid_price","bid_amount"]
[1733180513257,0.001865,95446.0,95445.0,0.33475591]
[1733180513698,0.001865,95446.0,95445.0,0.33575591]
[1733180513929,0.000865,95446.0,95445.0,0.33575591]
[1733180514142,0.001865,95446.0,95445.0,0.33575591]
[1733180514561,0.000865,95446.0,95445.0,0.33575591]
[1733180514782,0.000865,95446.0,95445.0,0.33475591]
[1733180514995,0.001865,95446.0,95445.0,0.33575591]
[1733180520761,0.001865,95446.0,95445.0,0.51436003]
[1733180521405,0.001865,95446.0,95445.0,0.53527869]
[1733180521610,0.000865,95446.0,95445.0,0.75827869]
[1733180521845,0.000865,95446.0,95445.0,0.75727869]
[1733180523125,0.001865,95446.0,95445.0,0.75727869]
[1733180523527,0.000865,95446.0,95445.0,0.75727869]
[1733180525944,0.000865,95446.0,95445.0,1.10727869]
[1733180526368,0.000865,95460.0,95459.0,0.5384748]
[1733180526569,0.000865,95460.0,95459.0,3.10047399]
[1733180527600,0.001865,95460.0,95459.0,3.10047399]
[1733180529131,0.000865,95460.0,95459.0,3.10047399]
[1733180529373,0.001865,95460.0,95459.0,3.10047399]
[1733180529598,0.001865,95460.0,95459.0,3.20330545]
[1733180529808,0.000865,95460.0,95459.0,3.20330545]
[1733180530014,0.000865,95460.0,95459.0,3.10047399]
[1733180530245,0.001865,95460.0,95459.0,3.10047399]
[1733180530664,0.000865,95460.0,95459.0,3.10047399]
[1733180530884,0.001865,95460.0,95459.0,2.78811478]
[1733180531085,0.001865,95460.0,95459.0,2.73411478]
[1733180531285,0.001865,95460.0,95459.0,0.20511478]
[1733180531946,0.000865,95460.0,95459.0,0.20611478]
[1733180532348,0.002865,95460.0,95459.0,0.20511478]
[1733180532561,0.002865,95460.0,95459.0,0.20611478]
[1733180532817,0.000865,95460.0,95459.0,0.20611478]
[1733180533023,0.002865,95460.0,95459.0,0.20511478]
[1733180533839,0.000865,95460.0,95459.0,0.20511478]
[1733180534044,0.002865,95460.0,95459.0,0.20511478]
[1733180534461,0.002865,95460.0,95459.0,0.20611478]
[1733180534661,0.002865,95460.0,95459.0,0.20511478]
[1733180534872,0.002865,95460.0,95459.0,0.20611478]
[1733180535081,0.002865,95460.0,95459.0,0.28151986]
[1733180535333,0.000865,95460.0,95459.0,0.28934583]
[1733180535528,0.002865,95460.0,95459.0,0.28251986]
[1733180535945,0.000865,95460.0,95459.0,0.28251986]
[1733180536344,0.002865,95460.0,95459.0,0.49203386]
[1733180536557,0.002865,95460.0,95459.0,0.21494268]
[1733180536761,0.000865,95460.0,95459.0,0.20711478]
[1733180537164,0.002865,95460.0,95459.0,0.20711478]
[1733180537419,0.002865,95460.0,95459.0,0.20511478]
[1733180537620,0.002865,95460.0,95459.0,0.20611478]
[1733180537839,0.002865,95460.0,95459.0,0.91256016]
[1733180538023,0.002865,95460.0,95459.0,1.0827063]
[1733180538232,0.002865,95460.0,95459.0,1.2827063]
[1733180538465,0.0008646,95480.0,95470.0,0.5362498]
[1733180538620,0.0008646,95480.0,95479.0,0.6089308]
[1733180538817,0.0008646,95480.0,95479.0,0.94874562]
[1733180539819,0.00104101,95480.0,95479.0,0.94874562]
[1733180540019,0.00304101,95480.0,95479.0,0.94874562]
[1733180540476,0.00104101,95480.0,95479.0,0.94874562]
[1733180540909,0.00304101,95480.0,95479.0,0.96973701]
[1733180543538,0.00304101,95480.0,95479.0,0.76973701]
[1733180543754,0.00304101,95480.0,95479.0,0.00782873]
[1733180543967,0.00304101,95480.0,95470.0,0.0549983]
[1733180543968,0.209472,95478.0,95473.0,0.1994608]
[1733180544188,0.209472,95478.0,95477.0,0.1994608]
[1733180544646,0.209472,95478.0,95474.0,0.1994608]
[1733180545058,0.418945,95478.0,95474.0,0.1994608]
[1733180545265,0.418945,95478.0,95477.0,0.001]
[1733180545413,0.209472,95478.0,95477.0,0.001]
[1733180545622,0.209472,95478.0,95476.0,0.1994608]
[1733180546143,0.211472,95478.0,95476.0,0.1994608]
[1733180546346,0.211472,95478.0,95470.0,0.0549983]
[1733180546551,0.209486,95472.0,95470.0,0.0009983]
[1733180546748,0.10284521,95471.0,95470.0,0.0009983]
[1733180546924,0.209518,95457.0,95456.0,0.1994608]
[1733180547129,0.209518,95457.0,95455.0,0.0009866]
[1733180548031,0.209518,95457.0,95456.0,0.001]
[1733180548227,0.218518,95457.0,95456.0,0.001]
[1733180548431,0.218518,95457.0,95455.0,0.0009866]
[1733180548837,0.227518,95457.0,95455.0,0.0019866]
[1733180549035,0.218518,95457.0,95455.0,0.0009866]
[1733180549260,0.224518,95457.0,95455.0,0.0009866]
[1733180549463,0.233518,95457.0,95456.0,0.001]
[1733180549874,0.227518,95457.0,95456.0,0.001]
[1733180550043,0.233518,95457.0,95456.0,0.001]
[1733180550430,0.224518,95457.0,95455.0,0.0009866]
[1733180550634,0.215518,95457.0,95455.0,0.0009866]
[1733180550836,0.224518,95457.0,95455.0,0.0019866]
[1733180551035,0.224518,95457.0,95455.0,0.0009866]
[1733180551036,0.215518,95457.0,95455.0,0.0009866]
[1733180551234,0.209518,95457.0,95455.0,0.0009866]
[1733180551438,0.218518,95457.0,95456.0,0.001]
[1733180551651,0.215518,95457.0,95455.0,0.0009866]
[1733180552085,0.009,95457.0,95456.0,0.4089808]
[1733180552293,0.54494101,95480.0,95456.0,0.64162601]
[1733180552496,0.20947,95479.0,95467.0,0.0009957]
[1733180552695,0.209472,95478.0,95467.0,0.0009957]
[1733180552898,0.209474,95477.0,95467.0,0.0009957]
[1733180553110,0.418949,95477.0,95467.0,0.0009957]
[1733180553315,0.209483,95473.0,95467.0,0.0009957]
[1733180553929,0.209474,95477.0,95467.0,0.0009957]
[1733180554143,0.209483,95473.0,95467.0,0.0009957]
[1733180554763,0.209483,95473.0,95467.0,0.0099957]
[1733180554973,0.359494,95468.0,95467.0,0.0099957]
[1733180555194,0.46233921,95468.0,95467.0,0.001]
[1733180555406,0.209527,95453.0,95452.0,0.1994608]
[1733180555864,0.209523,95455.0,95452.0,0.1994608]
[1733180556080,0.10284521,95467.0,95452.0,0.1994608]
[1733180556339,0.15,95468.0,95452.0,0.1994608]
[1733180556340,0.001,95468.0,95452.0,0.1994608]
[1733180556490,0.001,95468.0,95467.0,0.1994608]
[1733180556898,0.001,95468.0,95467.0,0.2004608]
[1733180557497,0.209485,95472.0,95467.0,0.2014578]
[1733180557672,0.000865,95473.0,95470.0,0.1994608]
[1733180557873,0.000865,95473.0,95467.0,0.000997]
[1733180557874,0.000865,95473.0,95472.0,0.1994608]
[1733180558158,0.000865,95473.0,95472.0,0.44317163]
[1733180558345,0.000865,95473.0,95472.0,0.44131794]
[1733180558573,0.000865,95473.0,95472.0,0.44131677]
[1733180558942,0.000865,95473.0,95472.0,0.33847156]
[1733180559142,0.000865,95473.0,95472.0,0.1994608]
[1733180559814,0.419831,95473.0,95469.0,0.1994608]
[1733180560017,0.000865,95473.0,95469.0,0.1994608]
[1733180560163,0.000865,95473.0,95472.0,0.1994608]
[1733180560623,0.209485,95472.0,95469.0,0.1994608]
[1733180560833,0.001865,95473.0,95471.0,0.1994608]
[1733180561256,0.002865,95473.0,95471.0,0.1994608]
[1733180561462,0.011865,95473.0,95472.0,0.001]
[1733180561890,0.000865,95473.0,95472.0,0.45004118]
[1733180562099,0.000865,95473.0,95472.0,1.96298639]
[1733180562301,0.000865,95473.0,95472.0,1.97079811]
[1733180563628,0.000865,95473.0,95472.0,1.85110273]
[1733180564750,0.009865,95473.0,95472.0,1.85210273]
[1733180564960,0.010865,95473.0,95472.0,1.89900273]
[1733180565177,0.015865,95473.0,95472.0,1.89900273]
[1733180565425,0.015865,95473.0,95472.0,1.89900214]
[1733180565426,0.005865,95473.0,95472.0,1.89900214]
[1733180565724,0.006865,95473.0,95472.0,2.3031336]
[1733180565952,0.010865,95473.0,95472.0,2.3031336]
[1733180567148,0.001865,95473.0,95472.0,2.3031336]
[1733180567350,0.002865,95473.0,95472.0,2.3031336]
[1733180567564,0.003865,95473.0,95472.0,2.3031336]
[1733180568410,0.003865,95473.0,95472.0,2.30312863]
[1733180568622,0.003865,95473.0,95472.0,2.33723047]
[1733180568832,0.003865,95473.0,95472.0,2.3450366]
[1733180569037,0.003865,95473.0,95472.0,2.33723047]
[1733180569244,0.003865,95473.0,95472.0,2.34503633]
[1733180569456,0.003865,95473.0,95472.0,2.49503633]
[1733180572588,0.003865,95473.0,95472.0,2.29503633]
[1733180573622,0.003865,95473.0,95472.0,2.03066753]
[1733180573732,0.003865,95473.0,95472.0,2.23012833]
[1733180575437,0.003865,95473.0,95472.0,2.03066753]
[1733180575651,0.003865,95473.0,95472.0,1.53876666]
[1733180575861,0.003865,95473.0,95472.0,1.5309608]
[1733180577364,0.002865,95473.0,95472.0,1.5309608]
[1733180577575,0.003865,95473.0,95472.0,1.5309608]
[1733180578239,0.002865,95473.0,95472.0,1.5309608]
[1733180578662,0.003865,95473.0,95472.0,1.5309608]
[1733180578866,0.003865,95473.0,95472.0,1.3315]
[1733180579086,0.0671986,95473.0,95467.0,0.000997]
[1733180579293,0.209494,95468.0,95467.0,0.2004578]
[1733180579503,0.209487,95471.0,95467.0,0.2004578]
[1733180579718,0.209487,95471.0,95467.0,0.000997]
[1733180579916,0.418975,95471.0,95468.0,0.1994608]
[1733180580376,0.418975,95471.0,95467.0,0.000997]
[1733180580895,0.418975,95471.0,95468.0,0.1994608]
[1733180581133,0.418975,95471.0,95470.0,0.4089498]
[1733180581134,0.002,95471.0,95470.0,0.4089498]
[1733180581360,0.002,95471.0,95470.0,0.53479501]
[1733180581594,0.002865,95473.0,95472.0,0.2224608]
[1733180581817,0.002865,95473.0,95472.0,0.53479101]
[1733180582051,0.002865,95473.0,95472.0,0.54261155]
[1733180582258,0.002865,95473.0,95472.0,0.20728134]
[1733180583943,0.002865,95473.0,95472.0,0.33418164]
[1733180584139,0.002865,95473.0,95472.0,0.41182785]
[1733180584396,0.004865,95473.0,95472.0,0.45772785]
[1733180585760,0.004865,95473.0,95472.0,0.43472785]
[1733180585966,0.004865,95473.0,95472.0,0.53755931]
[1733180589056,0.004865,95473.0,95472.0,0.71055931]
[1733180589684,0.002865,95473.0,95472.0,0.71055931]
[1733180590087,0.003865,95473.0,95472.0,0.71055931]
[1733180590661,0.002865,95473.0,95472.0,0.71055931]
[1733180590859,0.003865,95473.0,95472.0,0.91055931]
[1733180591568,0.003865,95473.0,95472.0,1.11055931]
[1733180591791,0.70274916,95483.0,95482.0,0.8969621]
[1733180591997,0.70274916,95483.0,95482.0,1.10263877]
[1733180593913,0.70274916,95483.0,95482.0,1.10223992]
[1733180594242,0.70274916,95483.0,95482.0,0.90223992]
[1733180594445,0.70274916,95483.0,95482.0,1.10423992]
[1733180596374,0.70274916,95483.0,95482.0,1.13682311]
[1733180596587,0.1987742,95483.0,95482.0,3.70290846]
[1733180596813,0.0008646,95532.0,95508.0,0.2767621]
[1733180597029,0.0008646,95532.0,95508.0,1.00840706]
[1733180597484,0.04559315,95542.0,95509.0,0.35]
[1733180597695,0.04559315,95542.0,95535.0,0.1986621]
[1733180597895,0.04559315,95542.0,95539.0,0.1986621]
[1733180598103,0.00058826,95542.0,95539.0,0.1986621]
[1733180598334,0.00058826,95542.0,95538.0,0.1986621]
[1733180599610,0.00058826,95542.0,95528.0,0.1986621]
[1733180600001,0.209341,95538.0,95533.0,0.1986621]
[1733180600412,0.00058826,95542.0,95533.0,0.1986621]
[1733180600840,0.00058826,95542.0,95540.0,0.1986621]
[1733180601325,0.00058826,95542.0,95541.0,0.1986621]
[1733180601539,0.07611539,95555.0,95548.0,0.1986621]
[1733180601752,0.000865,95556.0,95548.0,0.1986621]
[1733180601976,0.00015401,95555.0,95552.0,0.1986621]
[1733180602215,0.00015401,95555.0,95554.0,0.1986621]
[1733180604391,0.20030601,95563.0,95554.0,0.1986621]
[1733180604644,0.1937616,95566.0,95560.0,0.1986621]
[1733180604886,0.1937616,95566.0,95554.0,0.00015401]
[1733180604887,0.081665,95568.0,95556.0,0.1986621]
[1733180605183,0.081665,95568.0,95554.0,0.00015401]
[1733180605413,0.000864,95555.0,95554.0,0.00015401]
[1733180606352,0.000864,95555.0,95554.0,0.00615401]
[1733180606850,0.000864,95555.0,95554.0,0.00015401]
[1733180608777,0.000864,95555.0,95554.0,5.401e-05]
[1733180612989,0.148464,95555.0,95554.0,5.401e-05]
[1733180613956,0.209332,95542.0,95540.0,0.00063766]
[1733180614161,0.209305,95554.0,95547.0,0.1982691]
[1733180614363,0.209305,95554.0,95540.0,0.08123766]
[1733180614364,0.209307,95553.0,95548.0,0.1982691]
[1733180614586,0.209307,95553.0,95552.0,0.1982691]
[1733180614763,0.21034317,95555.0,95552.0,0.1982691]
[1733180615399,0.21034317,95555.0,95553.0,0.1982691]
[1733180615400,0.00104017,95555.0,95553.0,0.1982691]
[1733180615791,0.21034517,95555.0,95553.0,0.1982691]
[1733180616025,0.00104017,95555.0,95554.0,0.1982691]
[1733180617734,0.00104017,95555.0,95540.0,0.0806]
[1733180617735,0.209305,95554.0,95553.0,0.1982691]
[1733180618506,0.00104017,95555.0,95554.0,0.1982691]
[1733180618777,0.00104017,95555.0,95554.0,0.30111431]
[1733180619290,0.00104017,95555.0,95554.0,0.1982691]
[1733180620697,0.00104017,95555.0,95554.0,0.3245691]
[1733180621105,0.00104017,95555.0,95554.0,0.63671931]
[1733180621315,0.00804017,95555.0,95554.0,0.63771931]
[1733180621749,0.00804017,95555.0,95554.0,0.98771931]
[1733180622170,0.00804017,95555.0,95554.0,0.78771931]
[1733180622382,0.00804017,95555.0,95554.0,0.37991431]
[1733180623074,0.00804017,95555.0,95554.0,0.38091431]
[1733180623347,0.00104017,95555.0,95554.0,0.37991431]
[1733180624041,0.00104017,95555.0,95554.0,0.37951547]
[1733180624276,0.00104017,95555.0,95554.0,0.37916147]
[1733180624482,0.00104017,95555.0,95554.0,0.38116147]
[1733180624708,0.00104017,95555.0,95554.0,0.38016147]
[1733180625140,0.00104017,95555.0,95554.0,0.37816147]
[1733180625346,0.00104017,95555.0,95554.0,0.37916147]
[1733180626696,0.00104017,95555.0,95554.0,0.62556147]
[1733180626909,0.00104017,95555.0,95554.0,0.97556147]
[1733180627123,0.00104017,95555.0,95554.0,0.97456147]
[1733180627352,0.00104017,95555.0,95554.0,0.97628927]
[1733180627550,0.00104017,95555.0,95554.0,0.97828927]
[1733180627995,0.00104017,95555.0,95554.0,0.97628927]
[1733180628223,0.00104017,95555.0,95554.0,0.97828927]
[1733180629250,0.00104017,95555.0,95554.0,0.97928927]
[1733180630115,0.00104017,95555.0,95554.0,1.00228927]
[1733180630598,0.00104017,95555.0,95554.0,1.31674496]
[1733180630834,0.00104017,95555.0,95554.0,1.03477461]
[1733180631472,0.00104017,95555.0,95554.0,1.01177461]
[1733180632782,0.00104017,95555.0,95554.0,0.97928927]
[1733180633005,0.00104017,95555.0,95554.0,0.77928927]
[1733180633878,0.00104017,95555.0,95554.0,0.97928927]
[1733180634096,0.00104017,95555.0,95554.0,0.97849222]
[1733180635220,0.00104017,95555.0,95554.0,1.01098207]
[1733180636310,0.00104017,95555.0,95554.0,1.08798207]
[1733180638971,0.000865,95568.0,95567.0,1.0831461]
[1733180639177,0.000865,95568.0,95567.0,1.18698421]
[1733180640277,0.000865,95568.0,95567.0,1.21942152]
[1733180640481,0.000865,95568.0,95567.0,1.18698421]
[1733180641623,0.004865,95568.0,95567.0,1.18798421]
[1733180641831,0.000865,95568.0,95567.0,0.98798421]
[1733180642044,0.000865,95568.0,95567.0,1.18898421]
[1733180643991,0.000865,95568.0,95567.0,1.18818552]
[1733180644419,0.000865,95568.0,95567.0,1.20901231]
[1733180645298,0.000865,95568.0,95567.0,1.22686303]
[1733180646395,0.000865,95568.0,95567.0,1.24986303]
[1733180647944,0.000865,95568.0,95567.0,1.22686303]
[1733180648781,0.000865,95568.0,95567.0,0.90126303]
[1733180648991,0.000865,95568.0,95567.0,1.10126303]
[1733180649644,0.000865,95568.0,95567.0,0.78416303]
[1733180649862,0.000865,95568.0,95567.0,0.70126303]
[1733180650334,0.000865,95568.0,95567.0,1.23086303]
[1733180650963,0.00042955,95569.0,95568.0,0.54747041]
[1733180651170,0.00042955,95569.0,95568.0,0.85031562]
[1733180652028,0.00042955,95569.0,95568.0,0.65031562]
[1733180652243,0.00042955,95569.0,95568.0,0.85911098]
[1733180653314,0.00042955,95569.0,95568.0,0.45911098]
[1733180653527,0.00042955,95569.0,95568.0,0.65911098]
[1733180653948,6e-05,95573.0,95568.0,0.65911098]
[1733180653949,3e-08,95580.0,95578.0,0.209253]
[1733180654229,3e-08,95580.0,95579.0,0.11162267]
[1733180655942,0.00400003,95580.0,95579.0,0.11162267]
[1733180656561,3e-08,95580.0,95579.0,0.30909308]
[1733180658010,0.00500003,95580.0,95579.0,0.32157518]
[1733180661121,0.00500003,95580.0,95579.0,0.87157518]
[1733180661819,3e-08,95580.0,95579.0,0.87157518]
[1733180662029,3e-08,95580.0,95579.0,0.90406719]
[1733180662248,3e-08,95580.0,95579.0,0.90506719]
[1733180662462,3e-08,95580.0,95579.0,0.98416719]
[1733180662674,3e-08,95580.0,95579.0,0.98916719]
[1733180662887,3e-08,95580.0,95579.0,0.99116719]
[1733180663319,0.00082363,95580.0,95579.0,0.98916719]
[1733180663543,0.00082363,95580.0,95579.0,0.99316719]
[1733180664201,0.00082363,95580.0,95579.0,0.98676761]
[1733180664409,0.00182363,95580.0,95579.0,0.99476761]
[1733180664858,0.00182363,95580.0,95579.0,0.99076761]
[1733180665078,0.00182363,95580.0,95579.0,0.99476761]
[1733180665473,0.00182363,95580.0,95579.0,0.9622756]
[1733180665946,0.00182363,95580.0,95579.0,0.5622756]
[1733180666158,0.00182363,95580.0,95579.0,0.4831756]
[1733180667279,0.0761,95592.0,95580.0,0.209248]
[1733180667490,0.0761,95592.0,95581.0,0.10284521]
[1733180667726,0.0761,95592.0,95591.0,0.19747041]
[1733180667936,0.209224,95591.0,95589.0,0.19747041]
[1733180668156,0.0761,95592.0,95591.0,0.19747041]
[1733180668791,0.0761,95592.0,95591.0,0.20527534]
[1733180668998,0.0492,95605.0,95604.0,0.19747041]
[1733180669205,0.258394,95605.0,95604.0,0.19747041]
[1733180669410,0.1253,95605.0,95604.0,0.19747041]
[1733180671350,0.1253,95605.0,95604.0,0.19847041]
[1733180671565,0.2,95630.0,95612.0,0.19667472]
[1733180671566,0.12638321,95630.0,95612.0,0.19667472]
[1733180671774,0.209172,95615.0,95612.0,0.19667472]
[1733180672198,0.209149,95626.0,95612.0,0.19667472]
[1733180672413,0.31199421,95626.0,95612.0,0.19667472]
[1733180672624,0.209166,95618.0,95612.0,0.19667472]
[1733180672833,0.209166,95618.0,95612.0,0.20567472]
[1733180673051,0.12638321,95630.0,95612.0,0.20567472]
[1733180673052,0.209153,95624.0,95618.0,0.19667472]
[1733180673303,0.20916,95621.0,95618.0,0.19667472]
[1733180673521,0.41832,95621.0,95618.0,0.19667472]
[1733180673739,0.20917,95616.0,95612.0,0.009]
[1733180673954,0.210173,95615.0,95612.0,0.018]
[1733180674171,0.210173,95615.0,95612.0,0.01680345]
[1733180674386,0.418346,95615.0,95612.0,0.00780345]
[1733180674596,0.209176,95613.0,95604.0,0.19685105]
[1733180674833,0.209189,95608.0,95604.0,0.19857765]
[1733180676330,0.209191,95606.0,95604.0,0.19857765]
[1733180676542,0.023,95605.0,95604.0,0.19857765]
[1733180677216,0.023,95605.0,95604.0,0.00290293]
[1733180677440,0.023,95605.0,95604.0,0.00190293]
[1733180677441,0.24874521,95605.0,95604.0,0.00190293]
[1733180677869,0.24874521,95605.0,95604.0,0.00290293]
[1733180677870,0.25674521,95605.0,95604.0,0.00290293]
[1733180678094,0.25674521,95605.0,95604.0,0.00190293]
[1733180678095,0.40674521,95605.0,95604.0,0.00190293]
[1733180678307,0.250126,95590.0,95589.0,0.0009968]
[1733180678520,0.20925,95579.0,95577.0,0.19667472]
[1733180678754,0.23225,95579.0,95577.0,0.19667472]
[1733180679471,0.023,95579.0,95577.0,0.19667472]
[1733180679712,0.0472,95594.0,95590.0,0.19667472]
[1733180679713,0.209218,95594.0,95590.0,0.19667472]
[1733180679914,0.209222,95592.0,95590.0,0.19667472]
[1733180680121,0.023,95591.0,95590.0,0.19667472]
[1733180680336,0.023,95599.0,95590.0,0.19667472]
[1733180680550,0.023,95593.0,95590.0,0.19667472]
[1733180680769,0.418445,95592.0,95589.0,0.009]
[1733180681018,0.232226,95590.0,95589.0,0.009]
[1733180681671,0.232226,95590.0,95570.0,0.19667472]
[1733180681672,0.31185,95579.0,95570.0,0.19667472]
[1733180681892,0.023,95579.0,95576.0,0.19667472]
[1733180682325,0.023,95579.0,95571.0,0.19667472]
[1733180682978,0.023,95579.0,95572.0,0.0009821]
[1733180683477,0.023,95579.0,95578.0,0.00116443]
[1733180683715,0.027,95579.0,95578.0,0.00116443]
[1733180683927,0.036,95579.0,95578.0,0.00216443]
[1733180684134,0.027,95579.0,95578.0,0.00116443]
[1733180684336,0.036,95579.0,95578.0,0.00216443]
[1733180685165,0.032,95579.0,95578.0,0.00216443]
[1733180685604,0.036,95579.0,95578.0,0.00216443]
[1733180687952,0.013,95579.0,95578.0,0.19883915]
[1733180688185,0.013,95579.0,95578.0,0.19672575]
[1733180688400,0.013,95579.0,95578.0,0.29957096]
[1733180688622,0.013,95579.0,95578.0,0.44957096]
[1733180688864,0.013,95579.0,95578.0,0.49847096]
[1733180689075,0.009,95579.0,95578.0,0.49847096]
[1733180689544,0.011,95579.0,95578.0,0.49847096]
[1733180689780,0.002,95579.0,95578.0,0.49841993]
[1733180690014,0.006,95579.0,95578.0,0.49841993]
[1733180690235,0.006,95579.0,95578.0,0.19667472]
[1733180691916,0.006,95579.0,95572.0,0.0009821]
[1733180692116,0.006,95579.0,95578.0,0.19667472]
[1733180692789,0.004,95579.0,95578.0,0.19667472]
[1733180693425,0.005,95579.0,95578.0,0.19667472]
[1733180694070,0.004,95579.0,95578.0,0.19667472]
[1733180694277,0.006,95579.0,95578.0,0.19667472]
[1733180695375,0.001,95579.0,95578.0,0.19667472]
[1733180696907,0.001,95579.0,95578.0,0.19840132]
[1733180699918,0.001,95579.0,95578.0,0.28050132]
[1733180700156,0.001,95579.0,95578.0,0.38334653]
[1733180700386,0.001,95579.0,95578.0,0.43144653]
[1733180702378,0.209199,95603.0,95595.0,0.209215]
[1733180702562,0.209199,95603.0,95597.0,0.0009956]
[1733180702807,0.209196,95604.0,95597.0,0.0009956]
[1733180703017,0.023,95606.0,95597.0,0.0009956]
[1733180703257,0.209206,95600.0,95597.0,0.0009956]
[1733180703936,0.023,95599.0,95597.0,0.0009956]
[1733180704171,0.209209,95598.0,95597.0,0.0019956]
[1733180704577,0.209209,95598.0,95597.0,0.0009956]
[1733180704786,0.209209,95598.0,95597.0,0.0019956]
[1733180705291,0.41805421,95598.0,95597.0,0.0009956]
[1733180705503,0.41805421,95598.0,95581.0,0.19667472]
[1733180705504,0.209228,95590.0,95581.0,0.19667472]
[1733180705712,0.20922,95593.0,95581.0,0.19667472]
[1733180705921,0.20922,95593.0,95582.0,0.209244]
[1733180706335,0.209213,95596.0,95585.0,0.19667472]
[1733180706584,0.023,95595.0,95585.0,0.19667472]
[1733180706762,0.209218,95594.0,95585.0,0.19667472]
[1733180706994,0.003,95593.0,95585.0,0.19667472]
[1733180707201,0.003,95593.0,95582.0,0.209242]
[1733180707202,0.003,95593.0,95584.0,0.19667472]
[1733180707422,0.003,95593.0,95585.0,0.209237]
[1733180707634,0.003,95593.0,95590.0,0.0009868]
[1733180707635,0.006,95593.0,95590.0,0.0009868]
[1733180707851,0.209218,95594.0,95590.0,0.0009868]
[1733180708271,0.026,95595.0,95590.0,0.0009868]
[1733180708272,0.008,95593.0,95590.0,0.0009868]
[1733180708949,0.217221,95593.0,95590.0,0.0009868]
[1733180709650,0.220221,95593.0,95590.0,0.0009868]
[1733180709864,0.011,95593.0,95590.0,0.0009868]
[1733180710071,0.209213,95596.0,95590.0,0.0009868]
[1733180710283,0.212221,95593.0,95590.0,0.0009868]
[1733180710494,0.012,95593.0,95590.0,0.0019868]
[1733180710705,0.012,95593.0,95592.0,0.19667472]
[1733180711122,0.009,95593.0,95592.0,0.19667472]
[1733180711831,0.0008636,95599.0,95592.0,0.19667472]
[1733180712448,0.003,95596.0,95592.0,0.19667472]
[1733180712878,0.209209,95598.0,95592.0,0.19667472]
[1733180713139,0.009,95593.0,95592.0,0.19767472]
[1733180713373,0.209209,95598.0,95592.0,0.19667472]
[1733180713597,0.209209,95598.0,95592.0,0.007]
[1733180713598,0.209221,95593.0,95592.0,0.007]
[1733180713802,0.209221,95593.0,95592.0,0.008]
[1733180714012,0.209221,95593.0,95592.0,0.007]
[1733180714195,0.218221,95593.0,95592.0,0.001]
[1733180715296,0.009,95593.0,95592.0,0.001]
[1733180715976,0.012,95593.0,95592.0,0.001]
[1733180720029,0.0128636,95593.0,95592.0,0.001]
[1733180721158,0.07907892,95593.0,95592.0,0.001]
[1733180721369,0.18192413,95593.0,95592.0,0.001]
[1733180721776,0.13870881,95593.0,95592.0,0.001]
[1733180724176,0.28870881,95593.0,95592.0,0.0002013]
[1733180725047,0.20924,95584.0,95583.0,0.00026459]
[1733180725247,0.31208521,95584.0,95583.0,0.00026459]
[1733180725460,0.209217,95595.0,95583.0,0.00026459]
[1733180725461,0.209136,95632.0,95604.0,0.19667472]
[1733180725669,0.1272,95655.0,95604.0,0.19667472]
[1733180725670,0.0601761,95605.0,95604.0,0.77417089]
[1733180725878,0.0601761,95605.0,95604.0,0.80950533]
[1733180725879,0.0001761,95605.0,95604.0,0.80950533]
[1733180726085,0.0001761,95605.0,95604.0,1.03250533]
[1733180726297,0.0001761,95605.0,95604.0,0.77231993]
[1733180726500,0.0001761,95605.0,95604.0,0.57331793]
[1733180726717,0.0011761,95605.0,95604.0,0.58231793]
[1733180727165,0.0001761,95605.0,95604.0,0.57331793]
[1733180727580,0.0001761,95605.0,95604.0,0.57631793]
[1733180728007,0.0011761,95605.0,95604.0,0.58131793]
[1733180728454,0.0001761,95605.0,95604.0,0.57631793]
[1733180728902,0.0011761,95605.0,95604.0,0.58131793]
[1733180729106,0.0011761,95605.0,95604.0,0.57631793]
[1733180729313,0.0011761,95605.0,95604.0,0.57331793]
[1733180730157,0.0011761,95605.0,95604.0,0.57731793]
[1733180730380,0.0011761,95605.0,95604.0,0.58131793]
[1733180730584,0.0001761,95605.0,95604.0,0.57331793]
[1733180730787,0.0001761,95605.0,95604.0,0.42331793]
[1733180731031,0.0001761,95605.0,95604.0,0.42731793]
[1733180731236,0.0001761,95605.0,95604.0,0.32247272]
[1733180731435,0.0001761,95605.0,95604.0,0.19967272]
[1733180731856,0.0001761,95605.0,95604.0,0.20067272]
[1733180732362,0.0010397,95605.0,95604.0,0.206526]
[1733180732565,0.0010397,95605.0,95604.0,0.205526]
[1733180732992,0.0010397,95605.0,95604.0,0.203526]
[1733180733671,0.0010397,95605.0,95604.0,0.204526]
[1733180733875,0.0010397,95605.0,95604.0,0.205526]
[1733180734095,0.0010397,95605.0,95604.0,0.203526]
[1733180734311,0.0050397,95605.0,95604.0,0.203526]
[1733180734649,0.0060397,95605.0,95604.0,0.203526]
[1733180734856,0.0020397,95605.0,95604.0,0.203526]
[1733180735235,0.0080397,95605.0,95604.0,0.204526]
[1733180736086,0.0020397,95605.0,95604.0,0.203526]
[1733180736337,0.0010397,95605.0,95604.0,0.203526]
[1733180736742,0.0030397,95605.0,95604.0,0.203526]
[1733180736965,0.0030397,95605.0,95604.0,0.00685128]
[1733180737173,0.0010397,95605.0,95604.0,0.00685128]
[1733180737411,0.0030397,95605.0,95604.0,0.00685128]
[1733180737626,0.0090397,95605.0,95604.0,0.00785128]
[1733180737831,0.0070397,95605.0,95604.0,0.204526]
[1733180738043,0.0070397,95605.0,95604.0,0.00785128]
[1733180738278,0.0070397,95605.0,95604.0,0.00685128]
[1733180738279,0.03475209,95605.0,95604.0,0.00685128]
[1733180738542,0.0030397,95605.0,95604.0,0.00685128]
[1733180738776,0.0090397,95605.0,95604.0,0.001998]
[1733180738997,0.0090397,95605.0,95604.0,0.000998]
[1733180739246,0.0090397,95605.0,95604.0,0.00769978]
[1733180739247,0.0150397,95605.0,95604.0,0.00769978]
[1733180739468,0.0150397,95605.0,95604.0,0.001998]
[1733180739708,0.0150397,95605.0,95604.0,0.00769978]
[1733180739963,0.0150397,95605.0,95604.0,0.001998]
[1733180740187,0.0150397,95605.0,95604.0,0.00769978]
[1733180740402,0.0150397,95605.0,95604.0,0.001998]
[1733180741263,0.0150397,95605.0,95604.0,0.00769978]
[1733180741476,0.0150397,95605.0,95604.0,0.001998]
[1733180741688,0.0150397,95605.0,95604.0,0.00769978]
[1733180742734,0.0150397,95605.0,95604.0,0.001998]